fUST/lending_fUST_20250809
["ID","MTS","AMOUNT","RATE_DAILY","PERIOD"]
[378049369,1754695838930,-201.73428693,0.00022973,2]
[378049370,1754695838940,-500.0,0.00022973,2]
[378049371,1754695838949,-621.19859025,0.00022973,2]
[378049372,1754695838958,-168.63761492,0.00022973,2]
[378049373,1754695838967,-151.0,0.00022973,7]
[378049374,1754695838976,-255.733744,0.00022973,7]
[378049375,1754695838985,-212.373478,0.00022973,7]
[378049376,1754695838995,-696.62023,0.00022973,7]
[378049377,1754695839003,-696.62023,0.00022973,7]
[378049378,1754695839013,-217.126677,0.00022973,7]
[378049379,1754695839021,-151.0,0.00022973,7]
[378049380,1754695839030,-200.0,0.00023028,15]
[378049381,1754695839039,-300.0,0.00023028,15]
[378049382,1754695839048,-1022.74,0.00023028,2]
[378049383,1754695839058,-1464.11,0.00023028,2]
[378049384,1754695839067,-672.95,0.00023028,2]
[378049385,1754695839076,-740.98,0.00023028,2]
[378049386,1754695839085,-595.3,0.00023028,2]
[378049387,1754695839094,-460.0,0.00023028,2]
[378049388,1754695839108,-281.06584391,0.00023029,2]
[378049389,1754695839117,-758.87,0.00023029,2]
[378049390,1754695839127,-460.0,0.00023029,2]
[378049391,1754695839138,-460.0,0.00023029,2]
[378049392,1754695839148,-508.06,0.00023029,2]
[378049393,1754695839157,-392.86,0.00023029,2]
[378049394,1754695839166,-460.0,0.00023029,2]
[378049395,1754695839178,-460.0,0.00023029,2]
[378049396,1754695839188,-460.0,0.00023029,2]
[378049397,1754695839197,-570.39,0.00023056,3]
[378049398,1754695839207,-285.2,0.00023056,3]
[378049399,1754695839216,-237.67,0.00023056,3]
[378049400,1754695839227,-376.33467716,0.00023062,2]
[378049401,1754695839238,-751.1674943,0.00023062,2]
[378049402,1754695839248,-751.1674943,0.00023062,2]
[378049403,1754695839257,-751.1674943,0.00023062,2]
[378049404,1754695839267,-751.1674943,0.00023062,2]
[378049405,1754695839276,-751.1674943,0.00023062,2]
[378049406,1754695839285,-751.1674943,0.00023062,2]
[378049407,1754695839294,-751.1674943,0.00023062,2]
[378049408,1754695839303,-751.1674943,0.00023062,2]
[378049409,1754695839312,-751.1674943,0.00023062,2]
[378049410,1754695839322,-751.1674943,0.00023062,2]
[378049411,1754695839331,-751.1674943,0.00023062,2]
[378049412,1754695839340,-751.1674943,0.00023062,2]
[378049413,1754695839350,-751.1674943,0.00023062,2]
[378049414,1754695839359,-751.1674943,0.00023062,2]
[378049415,1754695839368,-178.588636,0.00023063,7]
[378049416,1754695839377,-205.379861,0.00023063,7]
[378049417,1754695839386,-205.379861,0.00023063,7]
[378049418,1754695839395,-713.01,0.00023063,3]
[378049419,1754695839405,-240.58818,0.00023064,7]
[378049420,1754695839414,-151.0,0.00023064,7]
[378049421,1754695839424,-151.0,0.00023064,7]
[378049422,1754695839433,-499.55229,0.00023064,7]
[378049423,1754695839539,-499.55229,0.00023064,7]
[378049426,1754695839549,-499.55229,0.00023064,7]
[378049427,1754695839559,-499.55229,0.00023064,7]
[378049429,1754695839567,-205.379861,0.00023064,7]
[378049431,1754695839577,-205.379861,0.00023064,7]
[378049433,1754695839586,-766.396396,0.00023064,7]
[378049435,1754695839596,-766.396396,0.00023064,7]
[378049437,1754695839605,-766.396396,0.00023064,7]
[378049439,1754695839615,-766.396396,0.00023064,7]
[378049441,1754695839624,-2411.19538479,0.00023065,2]
[378049443,1754695839633,-151.0,0.00023065,7]
[378049445,1754695839643,-696.62023,0.00023065,7]
[378049447,1754695839652,-696.62023,0.00023065,7]
[378049448,1754695839661,-696.62023,0.00023065,7]
[378049450,1754695839670,-696.62023,0.00023065,7]
[378049452,1754695839680,-217.126677,0.00023065,7]
[378049454,1754695839689,-217.126677,0.00023065,7]
[378049456,1754695839699,-205.379861,0.00023065,7]
[378049458,1754695839708,-205.379861,0.00023065,7]
[378049460,1754695839718,-1000.0,0.00023065,2]
[378049462,1754695839727,-1000.0,0.00023065,2]
[378049464,1754695839737,-1000.0,0.00023065,2]
[378049467,1754695839747,-1000.0,0.00023065,2]
[378049469,1754695839756,-1000.0,0.00023065,2]
[378049471,1754695839766,-151.0,0.00023066,7]
[378049473,1754695839775,-499.55229,0.00023066,7]
[378049475,1754695839785,-499.55229,0.00023066,7]
[378049477,1754695839794,-766.396396,0.00023066,7]
[378049478,1754695839803,-766.396396,0.00023066,7]
[378049481,1754695839813,-151.0,0.00023067,7]
[378049483,1754695839823,-151.0,0.00023067,7]
[378049484,1754695839833,-696.62023,0.00023067,7]
[378049486,1754695839842,-696.62023,0.00023067,7]
[378049487,1754695839852,-217.126677,0.00023067,7]
[378049489,1754695839861,-1500.0,0.00023068,2]
[378049491,1754695839871,-500.0,0.00023073,2]
[378049493,1754695839881,-218.313758,0.00023073,2]
[378049495,1754695839891,-500.0,0.00023073,2]
[378049497,1754695839900,-500.0,0.00023073,2]
[378049499,1754695839909,-500.0,0.00023073,2]
[378049501,1754695839918,-500.0,0.00023073,2]
[378049503,1754695839928,-500.0,0.00023073,2]
[378049505,1754695839937,-499.55229,0.00023073,7]
[378049508,1754695839946,-499.55229,0.00023073,7]
[378049510,1754695839955,-205.379861,0.00023073,7]
[378049513,1754695839964,-205.379861,0.00023073,7]
[378049516,1754695839973,-766.396396,0.00023073,7]
[378049519,1754695839982,-766.396396,0.00023073,7]
[378049521,1754695839992,-245.10409949,0.00023076,2]
[378049522,1754695840001,-2422.48191426,0.00023105,2]
[378049524,1754695840010,-696.62023,0.00023127,7]
[378049526,1754695840019,-696.62023,0.00023127,7]
[378049528,1754695840029,-217.126677,0.00023127,7]
[378049530,1754695840038,-499.55229,0.00023127,7]
[378049531,1754695840047,-499.55229,0.00023127,7]
[378049532,1754695840056,-205.379861,0.00023127,7]
[378049533,1754695840065,-205.379852,0.00023127,7]
[378049534,1754695840074,-766.396396,0.00023127,7]
[378049535,1754695840083,-766.396396,0.00023127,7]
[378049536,1754695840092,-151.0,0.00023128,7]
[378049537,1754695840105,-151.0,0.00023128,7]
[378049539,1754695840114,-696.62023,0.00023128,7]
[378049541,1754695840123,-696.62023,0.00023128,7]
[378049543,1754695840133,-696.62023,0.00023128,7]
[378049545,1754695840142,-696.620228,0.00023128,7]
[378049547,1754695840152,-217.126677,0.00023128,7]
[378049549,1754695840162,-217.126677,0.00023128,7]
[378049551,1754695840173,-217.126677,0.00023128,7]
[378049553,1754695840183,-217.12667438,0.00023128,7]
[378049555,1754695840193,-499.55229,0.00023128,7]
[378049558,1754695840203,-499.552297,0.00023128,7]
[378049560,1754695840213,-766.396396,0.00023128,7]
[378049561,1754695840222,-766.396404,0.00023128,7]
[378049563,1754695840231,-151.0,0.00023128,2]
[378049565,1754695840241,-151.0,0.00023128,2]
[378049567,1754695840250,-151.0,0.00023128,2]
[378049569,1754695840259,-20633.42279861,0.00023128,2]
[378049571,1754695840269,-151.0,0.00023128,2]
[378049573,1754695840278,-151.0,0.00023128,2]
[378049575,1754695840287,-151.0,0.00023128,2]
[378049577,1754695840297,-500.0,0.00023128,2]
[378049579,1754695840307,-151.0,0.00023128,2]
[378049581,1754695840317,-151.0,0.00023128,2]
[378049583,1754695840326,-151.0,0.00023128,2]
[378049585,1754695840336,-2183.31810187,0.00023128,2]
[378049587,1754695840345,-300.0,0.00023128,2]
[378049588,1754695840354,-250.0,0.00023128,2]
[378049589,1754695840364,-151.0,0.00023128,2]
[378049590,1754695840374,-151.0,0.00023128,2]
[378049591,1754695840383,-151.0,0.00023128,2]
[378049592,1754695840392,-151.0,0.00023128,2]
[378049593,1754695840402,-151.0,0.00023128,2]
[378049594,1754695840411,-151.0,0.00023128,2]
[378049595,1754695840421,-151.0,0.00023128,2]
[378049596,1754695840430,-500.0,0.00023173,2]
[378049597,1754695840439,-463.59762003,0.00023173,2]
[378049598,1754695840448,-500.0,0.00023173,2]
[378049599,1754695840459,-500.0,0.00023173,2]
[378049600,1754695840468,-500.0,0.00023173,2]
[378049601,1754695840477,-393.77772868,0.00023173,2]
[378049602,1754695840487,-500.94423311,0.00023173,2]
[378049603,1754695840497,-500.0,0.00023173,2]
[378049604,1754695840506,-500.0,0.00023173,2]
[378049605,1754695840515,-600.0,0.00023173,2]
[378049606,1754695840524,-408.84354833,0.00023173,2]
[378049607,1754695840533,-500.0,0.00023173,2]
[378049608,1754695840543,-506.74926842,0.00023173,2]
[378049609,1754695840552,-500.0,0.00023173,2]
[378049610,1754695840562,-500.0,0.00023173,2]
[378049611,1754695840571,-349.23305075,0.00023173,2]
[378049612,1754695840580,-500.0,0.00023173,2]
[378049613,1754695840589,-500.0,0.00023173,2]
[378049614,1754695840599,-150.0,0.00023173,2]
[378049615,1754695840608,-500.0,0.00023173,2]
[378049616,1754695840618,-300.14602026,0.00023173,2]
[378049617,1754695840627,-502.60236374,0.00023173,2]
[378049618,1754695840637,-500.0,0.00023173,2]
[378049619,1754695840647,-500.0,0.00023173,2]
[378049620,1754695840656,-500.0,0.00023173,2]
[378049621,1754695840666,-500.0,0.00023173,2]
[378049622,1754695840676,-500.0,0.00023173,2]
[378049623,1754695840685,-2264.10087164,0.00023183,2]
[378049624,1754695840695,-460.0,0.00023205,2]
[378049625,1754695840704,-460.0,0.00023205,2]
[378049626,1754695840713,-460.0,0.00023205,2]
[378049627,1754695840722,-460.0,0.00023205,2]
[378049628,1754695840732,-460.0,0.00023205,2]
[378049629,1754695840741,-293.8,0.00023205,2]
[378049630,1754695840750,-460.0,0.00023205,2]
[378049631,1754695840759,-162.7,0.00023205,2]
[378049632,1754695840769,-460.0,0.00023205,2]
[378049633,1754695840777,-460.0,0.00023205,2]
[378049634,1754695840787,-460.0,0.00023205,2]
[378049635,1754695840796,-460.0,0.00023205,2]
[378049636,1754695840805,-460.0,0.00023205,2]
[378049637,1754695840814,-460.0,0.00023205,2]
[378049638,1754695840823,-460.0,0.00023205,2]
[378049639,1754695840833,-460.0,0.00023205,2]
[378049640,1754695840842,-460.0,0.00023205,2]
[378049641,1754695840851,-470.35407382,0.00023205,2]
[378049642,1754695840860,-460.0,0.00023205,2]
[378049643,1754695840870,-460.0,0.00023205,2]
[378049644,1754695840879,-562.06501111,0.00023205,2]
[378049645,1754695840888,-460.0,0.00023205,2]
[378049646,1754695840897,-460.0,0.00023205,2]
[378049647,1754695840906,-460.0,0.00023205,2]
[378049648,1754695840917,-460.0,0.00023205,2]
[378049649,1754695840926,-460.0,0.00023205,2]
[378049650,1754695840934,-460.0,0.00023205,2]
[378049651,1754695840944,-460.0,0.00023206,2]
[378049652,1754695840953,-527.82,0.00023206,2]
[378049653,1754695840962,-523.19,0.00023206,2]
[378049654,1754695840972,-460.0,0.00023206,2]
[378049655,1754695840981,-172.66985488,0.00023206,2]
[378049656,1754695840990,-460.0,0.00023206,2]
[378049657,1754695840999,-460.0,0.00023206,2]
[378049658,1754695841008,-460.0,0.00023206,2]
[378049659,1754695841017,-460.0,0.00023206,2]
[378049660,1754695841026,-151.0,0.00023207,7]
[378049661,1754695841035,-500.0,0.00023208,2]
[378049662,1754695841044,-151.0,0.00023208,2]
[378049663,1754695841053,-151.0,0.00023208,2]
[378049664,1754695841062,-151.0,0.00023208,2]
[378049665,1754695841071,-151.0,0.00023208,2]
[378049666,1754695841079,-210.5932163,0.00023208,2]
[378049667,1754695841089,-151.0,0.00023208,2]
[378049668,1754695841097,-500.0,0.00023208,2]
[378049669,1754695841109,-151.0,0.00023208,2]
[378049670,1754695841119,-500.0,0.00023208,2]
[378049671,1754695841128,-259.08575745,0.00023208,2]
[378049672,1754695841137,-259.22786994,0.00023208,2]
[378049673,1754695841147,-500.0,0.00023208,2]
[378049674,1754695841156,-453.53099303,0.00023238,2]
[378049675,1754695841165,-1500.0,0.00023253,2]
[378049676,1754695841175,-245.65820441,0.00023273,2]
[378049677,1754695841184,-168.87001096,0.00023278,2]
[378049678,1754695841194,-1022.74,0.00023302,2]
[378049679,1754695841204,-1464.11,0.00023302,2]
[378049680,1754695841213,-672.95,0.00023302,2]
[378049681,1754695841223,-740.98,0.00023302,2]
[378049682,1754695841233,-595.3,0.00023302,2]
[378049683,1754695841242,-460.0,0.00023302,2]
[378049684,1754695841251,-758.87,0.00023303,2]
[378049685,1754695841260,-460.0,0.00023303,2]
[378049686,1754695841269,-460.0,0.00023303,2]
[378049687,1754695841279,-508.06,0.00023303,2]
[378049688,1754695841287,-460.0,0.00023303,2]
[378049689,1754695841295,-460.0,0.00023303,2]
[378049690,1754695841303,-485.98220917,0.00023303,2]
[378049691,1754695841311,-151.0,0.0002334,7]
[378049692,1754695841320,-460.0,0.00023479,2]
[378049693,1754695841328,-460.0,0.00023479,2]
[378049694,1754695841336,-460.0,0.00023479,2]
[378049695,1754695841345,-460.0,0.00023479,2]
[378049696,1754695841353,-460.0,0.00023479,2]
[378049697,1754695841361,-460.0,0.00023479,2]
[378049698,1754695841370,-460.0,0.00023479,2]
[378049699,1754695841378,-460.0,0.00023479,2]
[378049700,1754695841386,-460.0,0.00023479,2]
[378049701,1754695841394,-207.72,0.00023479,2]
[378049702,1754695841402,-460.0,0.00023479,2]
[378049703,1754695841411,-460.0,0.00023479,2]
[378049704,1754695841419,-460.0,0.00023479,2]
[378049705,1754695841427,-460.0,0.0002348,2]
[378049706,1754695841435,-460.0,0.0002348,2]
[378049707,1754695841443,-151.0,0.00023481,7]
[378049708,1754695841452,-500.0,0.00023482,2]
[378049709,1754695841461,-151.0,0.00023482,2]
[378049710,1754695841470,-198.35421511,0.00023482,2]
[378049711,1754695841478,-198.29692576,0.00023482,2]
[378049712,1754695841486,-198.64985678,0.00023482,2]
[378049713,1754695841494,-151.0,0.00023482,2]
[378049714,1754695841502,-500.0,0.00023482,2]
[378049715,1754695841510,-198.15079524,0.00023482,2]
[378049716,1754695841518,-502.56080464,0.00023482,2]
[378049717,1754695841526,-500.0,0.00023482,2]
[378049718,1754695841534,-391.24070835,0.00023521,2]
[378049719,1754695841543,-198.0430543,0.00023521,2]
[378049720,1754695841552,-370.55393341,0.00023521,2]
[378049721,1754695841561,-1000.0,0.00023521,2]
[378049722,1754695841571,-1060.14278346,0.00023521,2]
[378049723,1754695841579,-1000.0,0.00023521,2]
[378049724,1754695841589,-1000.0,0.00023521,2]
[378049725,1754695841598,-1006.52330765,0.00023521,2]
[378049726,1754695841607,-1000.0,0.00023521,2]
[378049727,1754695841710,-1000.75183881,0.00023521,2]
[378049728,1754695841720,-1000.0,0.00023521,2]
[378049729,1754695841729,-1000.0,0.00023521,2]
[378049730,1754695841738,-1000.0,0.00023521,2]
[378049731,1754695841748,-649.92277027,0.00023521,2]
[378049732,1754695841756,-958.27049521,0.00023521,2]
[378049733,1754695841766,-1000.0,0.00023521,2]
[378049734,1754695841775,-1000.0,0.00023521,2]
[378049735,1754695841785,-1000.0,0.00023521,2]
[378049736,1754695841794,-1000.0,0.00023521,2]
[378049737,1754695841804,-1000.0,0.00023521,2]
[378049738,1754695841813,-1000.0,0.00023521,2]
[378049739,1754695841822,-1050.67071566,0.00023521,2]
[378049740,1754695841831,-1000.0,0.00023521,2]
[378049741,1754695841840,-1003.48395445,0.00023521,2]
[378049742,1754695841850,-1000.0,0.00023521,2]
[378049743,1754695841859,-1000.0,0.00023521,2]
[378049744,1754695841868,-1000.0,0.00023521,2]
[378049745,1754695841878,-151.0,0.00023521,7]
[378049746,1754695841887,-1022.74,0.00023576,2]
[378049747,1754695841896,-1464.11,0.00023576,2]
[378049748,1754695841905,-672.95,0.00023576,2]
[378049749,1754695841914,-740.98,0.00023576,2]
[378049750,1754695841923,-595.3,0.00023576,2]
[378049751,1754695841933,-460.0,0.00023576,2]
[378049752,1754695841943,-758.87,0.00023577,2]
[378049753,1754695841951,-460.0,0.00023577,2]
[378049754,1754695841960,-460.0,0.00023577,2]
[378049755,1754695841970,-508.06,0.00023577,2]
[378049756,1754695841978,-460.0,0.00023577,2]
[378049757,1754695841987,-460.0,0.00023577,2]
[378049758,1754695841997,-597.23,0.00023611,2]
[378049759,1754695842006,-2000.0,0.00023616,2]
[378049760,1754695842015,-1000.0,0.00023621,2]
[378049761,1754695842025,-1000.0,0.00023621,2]
[378049762,1754695842034,-1000.0,0.00023621,2]
[378049763,1754695842043,-1000.0,0.00023621,2]
[378049764,1754695842052,-1000.0,0.00023621,2]
[378049765,1754695842061,-500.67242044,0.00023621,2]
[378049766,1754695842070,-1000.0,0.00023721,2]
[378049767,1754695842079,-286.76428022,0.00023721,2]
[378049768,1754695842144,-713.23571978,0.00023721,2]
[378049769,1754695842153,-1000.0,0.00023721,2]
[378049770,1754695842162,-509.61428022,0.00023721,2]
[378049771,1754695842238,-211.12979383,0.00022934,2]
[378049772,1754695842248,-1000.0,0.00023072,2]
[378049773,1754695842258,-696.63730831,0.00023127,2]
[378049774,1754695842294,765.3,0.0002248,2]
[378049786,1754695843010,-765.3,0.00022754,2]
[378049787,1754695843020,-765.3,0.00023028,2]
[378049788,1754695843029,-303.36269169,0.00023127,2]
[378049789,1754695843039,-1000.0,0.00023172,2]
[378049790,1754695843048,-1000.0,0.00023181,2]
[378049791,1754695843057,-1000.0,0.00023204,2]
[378049792,1754695843066,-1000.0,0.00023206,2]
[378049793,1754695843075,-765.3,0.00023302,2]
[378049794,1754695843085,-1000.0,0.00023339,2]
[378049795,1754695843094,-1000.0,0.0002348,2]
[378049796,1754695843105,-765.3,0.00023576,2]
[378049797,1754695843114,-1000.0,0.0002372,2]
[378049798,1754695843124,-449.0732915,0.00023721,2]
[378049799,1754695843133,-1001.96037417,0.00023721,2]
[378049800,1754695843142,-1000.0,0.00023721,2]
[378049801,1754695843153,-1200.0,0.00023721,2]
[378049802,1754695843162,-1119.98959917,0.00023721,2]
[378049803,1754695843171,-512.38946312,0.00023721,2]
[378049804,1754695843182,-1000.0,0.00023721,2]
[378049805,1754695843191,-1000.0,0.00023721,2]
[378049806,1754695843200,-1000.0,0.00023721,2]
[378049807,1754695843210,-250.0,0.00023721,2]
[378049808,1754695843219,-1111.66654904,0.00023721,2]
[378049809,1754695843228,-1000.0,0.00023721,2]
[378049810,1754695843237,-1000.0,0.00023721,2]
[378049811,1754695843246,-1000.0,0.00023721,2]
[378049812,1754695843255,-460.0,0.00023753,2]
[378049813,1754695843265,-460.0,0.00023753,2]
[378049814,1754695843274,-213.43,0.00023753,2]
[378049815,1754695843283,-460.0,0.00023753,2]
[378049816,1754695843293,-460.0,0.00023753,2]
[378049817,1754695843302,-460.0,0.00023753,2]
[378049818,1754695843311,-460.0,0.00023753,2]
[378049820,1754695843323,-460.0,0.00023753,2]
[378049821,1754695843337,-460.0,0.00023753,2]
[378049823,1754695843350,-460.0,0.00023753,2]
[378049825,1754695843363,-460.0,0.00023753,2]
[378049826,1754695843374,-460.0,0.00023754,2]
[378049827,1754695843386,-460.0,0.00023754,2]
[378049828,1754695843399,-1000.0,0.00023754,2]
[378049829,1754695843412,-151.0,0.00023755,7]
[378049830,1754695843424,-500.0,0.00023756,2]
[378049831,1754695843438,-151.0,0.00023756,2]
[378049832,1754695843450,-151.0,0.00023756,2]
[378049833,1754695843462,-279.76125369,0.00023756,2]
[378049834,1754695843476,-151.0,0.00023756,2]
[378049835,1754695843488,-151.0,0.00023756,7]
[378049836,1754695843500,-2000.0,0.00023801,2]
[378049837,1754695843512,-1022.74,0.0002385,2]
[378049838,1754695843524,-1464.11,0.0002385,2]
[378049839,1754695843535,-672.95,0.0002385,2]
[378049840,1754695843549,-740.98,0.0002385,2]
[378049841,1754695843562,-595.3,0.0002385,2]
[378049842,1754695843574,-460.0,0.0002385,2]
[378049843,1754695843585,-758.87,0.00023851,2]
[378049844,1754695843595,-460.0,0.00023851,2]
[378049845,1754695843607,-547.93348225,0.00023851,2]
[378049846,1754695843618,-508.06,0.00023851,2]
[378049847,1754695843630,-460.0,0.00023851,2]
[378049848,1754695843642,-250.58669912,0.00023851,2]
[378049849,1754695843656,-168.0,0.00023852,2]
[378049850,1754695843670,-511.86470421,0.00023887,2]
[378049851,1754695843683,-151.0,0.000239,7]
[378049852,1754695843696,-168.87001096,0.000239,2]
[378049853,1754695843709,-168.0,0.00023921,2]
[378049854,1754695843720,-500.98868041,0.00023973,2]
[378049855,1754695843730,-150.0,0.00023973,2]
[378049856,1754695843741,-500.0,0.00023973,2]
[378049857,1754695843753,-500.0,0.00023973,2]
[378049858,1754695843767,-500.0,0.00023973,2]
[378049859,1754695843782,-500.0,0.00023973,2]
[378049860,1754695843794,-500.0,0.00023973,2]
[378049861,1754695843805,-500.0,0.00023973,2]
[378049862,1754695843817,-500.0,0.00023973,2]
[378049863,1754695843828,-500.0,0.00023973,2]
[378049864,1754695843841,-644.76539684,0.00023973,2]
[378049865,1754695843852,-500.0,0.00023973,2]
[378049866,1754695843863,-500.0,0.00023973,2]
[378049867,1754695843873,-77081.90047077,0.00024,2]
[378049868,1754695843884,-160.0,0.00024,7]
[378049869,1754695843895,-312.16666667,0.00024,7]
[378049870,1754695843906,-160.0,0.00024,7]
[378049871,1754695843918,-231.87430077,0.00024,7]
[378049872,1754695843929,-160.0,0.00024,7]
[378049873,1754695843940,-160.0,0.00024,7]
[378049874,1754695843951,-272.0,0.00024,7]
[378049875,1754695843962,-150.0,0.00024024,2]
[378049876,1754695843973,-460.0,0.00024027,2]
[378049877,1754695843984,-460.0,0.00024027,2]
[378049878,1754695843995,-460.0,0.00024027,2]
[378049879,1754695844006,-460.0,0.00024027,2]
[378049880,1754695844017,-460.0,0.00024027,2]
[378049881,1754695844028,-460.0,0.00024027,2]
[378049882,1754695844039,-460.0,0.00024027,2]
[378049883,1754695844051,-460.0,0.00024027,2]
[378049884,1754695844062,-460.0,0.00024027,2]
[378049885,1754695844073,-379.3366273,0.00024027,2]
[378049886,1754695844084,-460.0,0.00024028,2]
[378049887,1754695844096,-460.0,0.00024028,2]
[378049888,1754695844109,-198.0,0.0002403,2]
[378049889,1754695844120,-284.97187778,0.0002403,2]
[378049890,1754695844131,-151.0,0.0002403,2]
[378049891,1754695844142,-873.32482167,0.00024037,2]
[378049892,1754695844154,-514.50305425,0.00024068,2]
[378049893,1754695844165,-1500.0,0.00024068,2]
[378049894,1754695844177,-1500.0,0.00024068,2]
[378049895,1754695844188,-1500.0,0.00024068,2]
[378049896,1754695844199,-1087.26502555,0.00024068,2]
[378049897,1754695844211,-500.0,0.00024068,2]
[378049898,1754695844222,-500.0,0.00024068,2]
[378049899,1754695844234,-662.43498449,0.00024068,2]
[378049900,1754695844247,-1192.28689502,0.00024068,2]
[378049901,1754695844258,-1500.0,0.00024068,2]
[378049902,1754695844269,-718.06276959,0.00024068,2]
[378049903,1754695844278,-1001.72606197,0.00024068,2]
[378049904,1754695844288,-1500.0,0.00024068,2]
[378049905,1754695844298,-1041.56782758,0.00024068,2]
[378049906,1754695844307,-664.52036037,0.00024068,2]
[378049907,1754695844316,-652.30229104,0.00024068,2]
[378049908,1754695844326,-968.84954251,0.00024124,2]
[378049909,1754695844622,-32.83177806,0.0002385,2]
[378049911,1754695846084,-732.46822194,0.0002385,2]
[378049912,1754695846094,-53.89045749,0.00024124,2]
[378049913,1754695846107,-1464.11,0.00024124,2]
[378049914,1754695846116,-136.30122675,0.00024124,2]
[378049915,1754695846691,460.0,0.00021932,2]
[378049916,1754695846928,460.0,0.00022206,2]
[378049917,1754695853652,460.0,0.00021933,2]
[378049918,1754695853961,460.0,0.00022207,2]
[378049919,1754695854215,460.0,0.00022481,2]
[378049920,1754695870637,505.91,0.00021932,2]
[378049921,1754695870972,505.91,0.00022206,2]
[378049922,1754695871239,505.91,0.0002248,2]
[378049923,1754695903443,460.0,0.00021932,2]
[378049924,1754695903725,460.0,0.00022206,2]
[378049925,1754695904009,460.0,0.0002248,2]
[378049926,1754695942703,460.0,0.00021932,2]
[378049927,1754695942957,460.0,0.00022206,2]
[378049928,1754695943238,460.0,0.0002248,2]
[378049929,1754696470041,290.498984,0.0003165,30]
[378049931,1754696725143,657.26931304,0.00025671,30]
[378049932,1754696725252,657.26931304,0.00025781,30]
[378049933,1754696725516,657.26931304,0.00025918,30]
[378049934,1754696725646,657.26931304,0.00026055,30]
[378049935,1754696725759,657.26931304,0.00026164,30]
[378049936,1754696725892,657.26931304,0.00026301,30]
[378049937,1754696726008,657.26931304,0.00026411,30]
[378049938,1754696726134,657.26931304,0.00026548,30]
[378049939,1754696726250,657.26931304,0.00026658,30]
[378049940,1754696726396,657.26931304,0.00026795,30]
[378049941,1754696726557,657.26931304,0.00026904,30]
[378049942,1754696726730,657.26931304,0.00027041,30]
[378049943,1754696768856,150.0,0.00031651,30]
[378049944,1754696905761,15507.6574303,0.00021126,2]
[378049947,1754696934627,169.977068,0.00021213,2]
[378049948,1754696969379,-693.71000296,0.00021807,2]
[378049949,1754696969400,-179.65122183,0.00021807,2]
[378049950,1754696969424,-182.40459145,0.00021831,2]
[378049951,1754696969450,-182.40459141,0.00021907,2]
[378049952,1754696969470,-460.0,0.00021931,2]
[378049953,1754696969493,-181.71752625,0.00021931,2]
[378049954,1754696969514,-460.0,0.00021931,2]
[378049955,1754696969539,-182.40459141,0.00021983,2]
[378049956,1754696969560,-182.40459141,0.00022059,2]
[378049957,1754696969580,-182.40459141,0.00022135,2]
[378049958,1754696969602,-986.0,0.00022234,2]
[378049959,1754696969625,-724.44,0.00022234,2]
[378049960,1754696969646,-300.0,0.00022234,2]
[378049961,1754696969668,-307.51503,0.00022234,2]
[378049962,1754696969689,-460.0,0.00022235,2]
[378049963,1754696969867,-460.0,0.00022235,2]
[378049964,1754696969891,-460.0,0.00022235,2]
[378049965,1754696969913,-460.0,0.00022235,2]